bitfinex-derivatives/quotes_ETHF0:USTF0_20251117
["timestamp","ask_amount","ask_price","bid_price","bid_amount"]
[1763363320832,0.50679,3199.1,3198.9,0.0046908]
[1763363321039,0.7148,3199.2,3198.9,0.0046908]
[1763363322937,3.9226,3201.0,3199.7,0.8614]
[1763363323126,3.9226,3201.0,3200.8,1.14465702]
[1763363323440,3.9226,3201.6,3200.9,3.2078]
[1763363323643,0.50633,3202.1,3201.5,0.8586]
[1763363323832,3.71412,3202.1,3201.3,3.2078]
[1763363324132,3.21020217,3202.1,3201.3,3.21005177]
[1763363324339,3.71653217,3202.1,3201.3,3.21005177]
[1763363325043,0.00240217,3202.1,3201.7,3.2078]
[1763363326842,0.50873217,3202.1,3201.7,3.2078]
[1763363327133,0.50636,3201.9,3201.7,3.2078]
[1763363327340,1.2002,3201.8,3201.3,3.21005177]
[1763363327540,1.70658,3201.8,3201.3,3.21005177]
[1763363327742,0.50634,3202.0,3201.3,3.21005177]
[1763363328442,0.50636,3201.9,3201.3,3.21005177]
[1763363329447,3.21020217,3202.1,3201.3,3.21005177]
[1763363329641,0.00240217,3202.1,3202.0,1.0332]
[1763363330638,0.00240217,3202.1,3201.7,3.2078]
[1763363330842,1.1752,3201.8,3201.7,3.2078]
[1763363332742,1.68163,3201.4,3201.3,3.21005177]
[1763363333439,0.6717,3201.6,3201.3,3.21005177]
[1763363334239,0.00240217,3202.1,3201.3,3.21005177]
[1763363334846,0.50636,3201.9,3201.3,3.21005177]
[1763363335240,0.50637,3201.8,3201.3,3.21005177]
[1763363335546,0.6717,3201.6,3201.3,3.21005177]
[1763363335943,1.1781,3201.6,3201.3,3.21005177]
[1763363336151,0.6717,3201.6,3201.3,3.21005177]
[1763363336541,0.50642,3201.5,3201.3,3.21005177]
[1763363336741,0.6717,3201.6,3201.3,3.21005177]
[1763363337049,1.1781,3201.6,3201.3,3.21005177]
[1763363337350,0.50642,3201.5,3201.3,3.21005177]
[1763363338547,1.1752,3201.4,3201.3,3.21005177]
[1763363338949,0.6717,3201.6,3201.3,3.21005177]
[1763363339542,1.1781,3201.6,3201.3,3.21005177]
[1763363341349,0.50642,3201.5,3201.3,3.21005177]
[1763363341649,0.50642,3201.5,3200.8,3.2078]
[1763363341650,1.1752,3201.4,3200.8,3.2078]
[1763363341847,1.1752,3201.4,3199.8,3.2078]
[1763363341848,1.1752,3200.3,3199.8,3.2078]
[1763363342048,1.97029786,3201.0,3199.5,0.7007]
[1763363342049,3.2078,3200.5,3200.2,1.2213]
[1763363342349,0.50661,3200.3,3200.0,0.7007]
[1763363342549,3.71438,3200.5,3200.2,1.2213]
[1763363342853,3.71438,3200.5,3200.2,1.22441688]
[1763363343351,1.1752,3200.3,3200.2,0.00311688]
[1763363345757,3.2078,3200.5,3199.8,1.8374]
[1763363346057,3.2078,3200.1,3200.0,1.2213]
[1763363346645,1.1752,3199.9,3199.8,1.1367]
[1763363347157,1.1752,3199.9,3199.8,1.13933697]
[1763363347454,3.2078,3200.1,3199.8,3.06133697]
[1763363347654,0.50665,3200.0,3199.9,1.2213]
[1763363347847,0.50665,3200.0,3199.8,1.13933697]
[1763363349954,1.1752,3199.9,3199.8,1.13933697]
[1763363350947,3.2078,3200.1,3199.8,1.13933697]
[1763363350948,3.2078,3200.1,3199.8,2.36063697]
[1763363351258,3.2078,3200.1,3200.0,1.2213]
[1763363351962,0.6717,3201.0,3199.9,3.2078]
[1763363351963,0.50657,3200.5,3199.9,3.2078]
[1763363352456,3.71436,3200.6,3199.9,3.2078]
[1763363352650,0.50658,3200.5,3199.9,3.2078]
[1763363353154,0.5066,3200.4,3199.9,3.2078]
[1763363353354,0.50658,3200.5,3199.9,3.2078]
[1763363353749,0.5066,3200.4,3199.8,1.84003697]
[1763363353955,0.50665,3200.0,3199.8,1.13933697]
[1763363354149,3.71443,3200.2,3199.8,1.13933697]
[1763363354651,3.2078,3200.2,3199.8,1.13933697]
[1763363354855,0.50664,3200.1,3199.8,1.13933697]
[1763363355456,0.50664,3200.1,3200.0,1.2213]
[1763363355655,1.1752,3199.9,3199.8,1.13933697]
[1763363356557,3.2078,3200.2,3199.8,2.36063697]
[1763363357058,1.1752,3199.9,3199.8,1.13933697]
[1763363357256,3.71443,3200.2,3199.8,2.28863697]
[1763363357457,0.50664,3200.1,3199.8,2.28863697]
[1763363357752,3.2078,3200.2,3199.8,1.13933697]
[1763363357753,1.1858,3199.9,3199.8,1.13933697]
[1763363360052,0.50665,3200.0,3199.8,1.13933697]
[1763363360458,1.1937,3199.9,3199.8,1.13933697]
[1763363366162,1.1937,3199.9,3199.8,6.97e-06]
[1763363366957,0.50664,3200.1,3200.0,1.1494]
[1763363367158,1.08855,3200.0,3199.8,6.97e-06]
[1763363368061,2.38714786,3200.0,3199.8,6.97e-06]
[1763363369869,3.50155322,3200.0,3199.8,6.97e-06]
[1763363370263,3.50155322,3200.0,3198.8,0.82209469]
[1763363370264,1.70051,3199.0,3198.8,0.82209469]
[1763363370466,0.50683,3198.9,3198.7,0.03126319]
[1763363370666,3.2078,3199.1,3199.0,1.8757]
[1763363371369,3.21145678,3199.1,3199.0,1.87851504]
[1763363373665,4.40515678,3199.1,3199.0,1.15221504]
[1763363374768,4.40515678,3199.1,3199.0,0.00281504]
[1763363378069,4.40515678,3199.1,3199.0,1.15221504]
[1763363379069,3.21145678,3199.1,3199.0,1.87851504]
[1763363380471,4.40515678,3199.1,3199.0,1.87851504]
[1763363380672,4.40515678,3199.1,3199.0,1.15221504]
[1763363382070,3.21145678,3199.1,3199.0,1.87851504]
[1763363383072,0.00365678,3199.1,3199.0,1.87851504]
[1763363383265,3.2078,3199.6,3199.5,1.8757]
[1763363384473,3.21104305,3199.6,3199.5,1.8757]
[1763363387965,3.21104305,3199.6,3199.2,0.83515572]
[1763363387966,1.1937,3199.3,3199.2,0.83515572]
[1763363388167,1.1937,3199.2,3199.1,1.98455572]
[1763363388367,0.50673,3199.5,3199.4,1.123]
[1763363388566,3.21104305,3199.6,3199.4,1.123]
[1763363389079,4.24454305,3199.6,3199.5,1.123]
[1763363389677,3.21104305,3199.6,3199.5,1.7877]
[1763363390079,4.24454305,3199.6,3199.5,1.7877]
[1763363390481,4.24454305,3199.6,3199.5,1.123]
[1763363390788,1.0335,3199.2,3199.1,1.95815572]
[1763363391170,1.0335,3199.2,3199.1,1.123]
[1763363391882,3.2078,3199.4,3199.1,1.123]
[1763363392078,4.2413,3199.4,3199.3,1.123]
[1763363393175,1.54026,3199.3,3199.2,0.83637384]
[1763363393375,1.54026,3199.3,3199.2,1.95937384]
[1763363396187,1.0335,3199.3,3199.2,1.95937384]
[1763363399082,1.0335,3199.3,3199.2,0.83637384]
[1763363400189,1.0335,3199.3,3199.2,1.95937384]
[1763363400890,3.2078,3199.4,3199.3,1.123]
[1763363401688,1.0335,3199.3,3199.2,1.95937384]
[1763363401991,3.2078,3199.4,3199.0,1.09977842]
[1763363401992,3.2078,3199.4,3199.3,1.123]
[1763363402379,4.2413,3199.4,3199.3,1.123]
[1763363402894,1.0335,3199.1,3199.0,1.96218888]
[1763363403095,1.0335,3199.1,3199.0,0.83918888]
[1763363403602,1.0335,3199.1,3199.0,0.00281504]
[1763363403889,1.0335,3198.3,3198.2,1.09696338]
[1763363404190,1.0335,3197.7,3197.6,1.09696338]
[1763363404501,0.507,3197.8,3197.3,2.21996338]
[1763363404502,1.0335,3197.4,3197.3,2.21996338]
[1763363404705,0.50702,3197.7,3197.3,1.12674981]
[1763363405001,1.54054,3197.6,3197.5,1.123]
[1763363405999,1.0335,3197.6,3197.5,1.123]
[1763363406901,1.0335,3197.4,3197.3,1.12674981]
[1763363407294,1.0335,3197.4,3197.3,2.43624981]
[1763363408307,1.0335,3197.4,3197.3,1.31324981]
[1763363408505,1.0335,3197.4,3197.3,2.43624981]
[1763363408805,0.0046908,3197.7,3197.6,1.123]
[1763363411999,1.54061,3197.1,3197.0,0.0046908]
[1763363412206,5.89586386,3197.1,3197.0,0.0046908]
[1763363412600,11.89586386,3197.1,3197.0,0.0046908]
[1763363412800,1.54074,3196.3,3196.2,1.123]
[1763363413000,3.21016358,3196.3,3195.5,0.6647]
[1763363413197,3.21016358,3196.3,3196.2,1.123]
[1763363414296,4.24366358,3196.3,3196.2,1.123]
[1763363414603,0.50725,3196.2,3195.9,0.0046908]
[1763363414909,3.71740358,3196.3,3196.0,1.7877]
[1763363415105,3.71740358,3196.3,3196.2,1.123]
[1763363415506,3.21016358,3196.3,3196.2,1.123]
[1763363418600,3.2078,3196.7,3196.6,0.989]
[1763363418809,3.2078,3197.3,3197.2,1.0006]
[1763363419302,4.193,3197.3,3197.2,1.0006]
[1763363419705,4.19561117,3197.3,3197.2,1.0006]
[1763363419905,3.21041117,3197.3,3197.2,1.0006]
[1763363420499,4.19561117,3197.3,3197.0,0.6313]
[1763363420706,4.70269117,3197.3,3197.0,0.6313]
[1763363420908,1.0376,3197.1,3196.7,3.2078]
[1763363421318,0.50715,3196.9,3196.7,3.2078]
[1763363421515,4.75257,3196.8,3196.7,1.0249]
[1763363421717,4.75257,3196.8,3196.5,0.6313]
[1763363421916,4.75257,3196.8,3196.4,1.0249]
[1763363421917,1.5448,3196.5,3196.4,1.0249]
[1763363422120,3.2078,3196.8,3196.7,1.0249]
[1763363422808,1.0376,3196.6,3196.0,0.6647]
[1763363423315,3.2078,3197.1,3197.0,1.0249]
[1763363423715,4.2454,3197.1,3197.0,1.0249]
[1763363424012,0.50715,3196.9,3196.5,0.6193]
[1763363424213,1.0376,3196.6,3196.0,3.8725]
[1763363424518,1.0376,3196.6,3196.5,1.0249]
[1763363425013,3.2078,3196.7,3196.6,1.0249]
[1763363425916,3.2078,3196.7,3196.5,0.6193]
[1763363425917,4.2454,3196.7,3196.5,0.6193]
[1763363426112,4.2454,3196.7,3196.6,1.0249]
[1763363426914,3.2078,3196.7,3196.6,1.0249]
[1763363427812,0.00261117,3197.3,3197.2,1.0249]
[1763363428017,2.72995223,3197.6,3197.5,1.6442]
[1763363428418,3.2078,3198.0,3197.9,1.0249]
[1763363428917,0.78585,3198.7,3198.3,1.0249]
[1763363429117,0.78914899,3198.7,3198.3,1.02835738]
[1763363429325,0.50688,3198.6,3198.3,1.02835738]
[1763363429517,4.2454,3198.4,3198.3,0.00345738]
[1763363430120,3.2078,3198.4,3198.3,1.02835738]
[1763363432324,0.28228899,3198.7,3198.6,1.0249]
[1763363432626,1.31988899,3198.7,3198.6,1.0249]
[1763363432928,1.31988899,3198.7,3198.3,0.00345738]
[1763363433322,0.28228899,3198.7,3198.6,1.0249]
[1763363436634,1.31988899,3198.7,3198.6,1.0249]
[1763363436832,0.28228899,3198.7,3198.6,1.0249]
[1763363443031,3.71454,3199.5,3198.7,1.0249]
[1763363443237,4.75213,3199.5,3199.4,1.0249]
[1763363443642,4.75213,3199.5,3199.0,0.6193]
[1763363444131,4.75567986,3199.5,3199.0,0.6193]
[1763363444533,0.50675,3199.4,3199.0,0.6193]
[1763363444734,1.0376,3199.4,3199.3,1.0249]
[1763363445529,3.71807986,3199.5,3199.4,1.0249]
[1763363445843,3.21134986,3199.5,3199.4,1.0249]
[1763363446041,4.24894986,3199.5,3199.4,1.0249]
[1763363446635,4.24894986,3199.5,3199.0,0.6193]
[1763363446636,3.62664986,3199.5,3199.0,0.6193]
[1763363446840,4.2454,3199.1,3199.0,1.0249]
[1763363447337,4.2454,3199.1,3198.5,0.6193]
[1763363447537,4.75221,3199.1,3198.5,0.6193]
[1763363447733,4.7522,3199.1,3198.5,0.6193]
[1763363449042,0.50684,3198.9,3198.5,0.6193]
[1763363449943,0.3457,3199.0,3198.5,0.6193]
[1763363450144,0.85251,3199.0,3198.5,0.6193]
[1763363450642,0.8882,3199.0,3198.9,0.9011]
[1763363450836,3.7146,3199.1,3199.0,1.523]
[1763363451039,3.2078,3199.1,3199.0,1.523]
[1763363451946,0.50675,3199.4,3199.3,0.9011]
[1763363452344,1.39495,3199.4,3199.3,0.9011]
[1763363453047,4.09954986,3199.5,3199.4,0.9011]
[1763363454344,0.8882,3199.1,3198.7,3.2078]
[1763363455648,0.8882,3199.1,3199.0,0.9011]
[1763363458150,0.8882,3199.1,3198.7,4.30476338]
[1763363458351,1.395,3199.1,3198.7,4.30476338]
[1763363458649,1.395,3199.1,3199.0,0.9011]
[1763363458650,0.8882,3199.1,3199.0,0.9011]
[1763363460749,0.8882,3198.9,3198.8,0.9046]
[1763363461049,0.8882,3198.9,3198.8,1.8057]
[1763363461644,3.2078,3199.1,3198.8,1.8057]
[1763363461849,4.096,3199.1,3199.0,0.9011]
[1763363462046,0.8882,3198.9,3198.8,1.8057]
[1763363463345,4.096,3199.1,3199.0,0.9011]
[1763363463659,3.2078,3199.1,3199.0,1.523]
[1763363464151,4.096,3199.1,3199.0,0.9011]
[1763363464338,4.096,3199.1,3199.0,1.7395342]
[1763363464543,4.096,3199.1,3199.0,0.8384342]
[1763363464750,3.2078,3199.1,3199.0,1.523]
[1763363464953,3.21134986,3199.5,3199.4,0.9011]
[1763363465257,4.09954986,3199.5,3199.4,0.9011]
[1763363465447,4.09954986,3199.5,3199.4,1.73933449]
[1763363466256,1.39494,3199.4,3199.3,0.83823449]
[1763363467349,1.39494,3199.4,3199.3,1.73933449]
[1763363467556,1.39494,3199.4,3199.3,0.9011]
[1763363467846,0.8882,3199.3,3199.2,0.83823449]
[1763363468246,0.8882,3199.1,3199.0,0.83823449]
[1763363469256,0.8882,3199.1,3199.0,1.73933449]
[1763363470355,0.8882,3199.1,3199.0,0.9011]
[1763363470550,0.8882,3199.1,3199.0,1.73968929]
[1763363470855,0.8882,3199.1,3199.0,0.9011]
[1763363471353,0.8882,3199.1,3199.0,0.83860095]
[1763363472955,1.97651,3199.0,3198.9,0.83860095]
[1763363473254,0.8882,3198.9,3198.6,0.83860095]
[1763363473451,0.8882,3198.6,3198.4,0.83860095]
[1763363473654,4.3648,3198.5,3198.4,0.83860095]
[1763363473955,1.3951,3198.4,3198.3,0.84205833]
[1763363474654,1.3951,3198.4,3198.3,0.00345738]
[1763363475962,0.8882,3198.4,3198.3,0.00345738]
[1763363476152,3.2078,3198.5,3198.4,0.9011]
[1763363478956,4.096,3198.5,3198.3,0.00345738]
[1763363479265,0.8786,3198.4,3198.3,0.82145738]
[1763363479855,0.8786,3198.4,3198.3,0.00345738]
[1763363483961,0.8786,3198.4,3198.3,0.82145738]
[1763363484265,0.8786,3198.4,3198.3,0.00345738]
[1763363485770,3.2078,3198.5,3198.4,0.818]
[1763363488565,0.00354986,3199.5,3199.0,1.3539]
[1763363488768,1.12428767,3200.1,3199.5,1.3539]
[1763363488959,3.2078,3200.3,3199.5,5.67752142]
[1763363489667,3.71441,3200.3,3199.5,5.67752142]
[1763363489872,0.00759324,3199.6,3199.5,5.67752142]
[1763363490268,0.00759324,3199.6,3199.5,4.5617]
[1763363490873,3.71441,3200.3,3199.5,4.5617]
[1763363491166,3.71441,3200.3,3199.6,0.83529609]
[1763363491363,3.71441,3200.3,3199.5,4.57899609]
[1763363491765,0.0046908,3200.2,3199.5,4.57899609]
[1763363492069,0.0046908,3200.2,3200.1,0.818]
[1763363492465,0.8832908,3200.2,3200.1,0.818]
[1763363493466,0.8786,3200.1,3199.8,0.0046908]
[1763363493666,0.0046908,3200.2,3200.1,0.818]
[1763363496165,3.2078,3201.1,3201.0,1.3539]
[1763363496368,3.71421,3201.6,3201.0,1.3539]
[1763363496569,3.2078,3201.6,3201.5,1.3539]
[1763363496968,4.0864,3201.6,3201.5,1.3539]
[1763363497272,3.2103793,3201.6,3201.0,1.3539]
[1763363497478,0.50643,3201.4,3201.0,1.35660049]
[1763363497674,3.7167893,3201.6,3201.0,1.35660049]
[1763363497981,0.50642,3201.5,3201.0,1.35660049]
[1763363498178,0.50643,3201.4,3201.0,1.35660049]
[1763363499185,0.8786,3201.1,3201.0,0.00270049]
[1763363499481,4.0864,3201.1,3201.0,0.00270049]
[1763363500281,4.0864,3201.1,3201.0,0.53860049]
[1763363500475,3.2078,3201.1,3201.0,1.35660049]
[1763363500782,4.0864,3201.1,3201.0,1.35660049]
[1763363500974,4.0864,3201.1,3201.0,0.00270049]
[1763363502378,4.0864,3201.1,3201.0,4.9e-07]
[1763363503378,4.0864,3201.1,3199.9,3.2078]
[1763363503379,0.8786,3200.0,3199.9,3.2078]
[1763363503583,1.38527,3199.9,3199.8,0.0046908]
[1763363504382,0.8786,3199.9,3199.8,0.00793722]
[1763363504677,0.8786,3199.9,3199.8,0.82593722]
[1763363507797,0.50663,3200.2,3199.8,0.82593722]
[1763363509587,0.50663,3200.2,3200.0,0.5257]
[1763363510186,0.7739,3200.1,3200.0,0.5257]
[1763363510792,0.7739,3199.9,3199.8,0.00793722]
[1763363510991,0.0046908,3200.3,3200.2,0.8091]
[1763363517286,3.2078,3200.7,3200.6,0.8091]
[1763363518690,0.7739,3200.4,3200.3,0.83240839]
[1763363518895,0.7739,3200.3,3200.2,0.83240839]
[1763363519097,1.28052,3200.2,3200.1,0.83240839]
[1763363519297,0.7739,3200.0,3199.9,0.83240839]
[1763363519907,1.28057,3199.9,3199.8,0.00793722]
[1763363520198,4.48837,3199.9,3199.8,0.00793722]
[1763363520704,3.9817,3199.9,3199.8,0.00793722]
[1763363525505,5.12835073,3199.9,3199.8,0.00793722]
[1763363525796,0.50679,3199.1,3198.9,0.83240839]
[1763363525997,0.50683,3198.9,3198.5,2.16720839]
[1763363526306,3.2078,3198.7,3198.6,0.8091]
[1763363526902,3.9856583,3198.7,3198.6,0.81170496]
[1763363527301,3.9856583,3198.7,3198.6,0.00260496]
[1763363528006,3.9856583,3198.7,3198.6,0.81170496]
[1763363528312,5.13230903,3198.7,3198.6,0.00260496]
[1763363530605,3.9856583,3198.7,3198.6,0.00260496]
[1763363530805,5.13230903,3198.7,3198.6,0.00260496]
[1763363531205,5.13230903,3198.7,3198.6,4.96e-06]
[1763363532998,11.13230903,3198.7,3198.6,4.96e-06]
[1763363533199,5.13230903,3198.7,3198.6,4.96e-06]
[1763363537210,3.9856583,3198.7,3198.6,4.96e-06]
[1763363537509,5.13230903,3198.7,3198.6,4.96e-06]
[1763363541811,3.9856583,3198.7,3198.6,0.67050496]
[1763363542007,3.2117583,3198.7,3198.6,0.67050496]
[1763363543112,3.9403583,3198.7,3198.6,0.67050496]
[1763363543905,3.2117583,3198.7,3198.6,4.96e-06]
[1763363544508,3.2117583,3198.7,3198.6,0.67050496]
[1763363545106,3.2117583,3198.7,3198.6,4.96e-06]
[1763363545705,0.7286,3198.1,3198.0,0.5257]
[1763363545906,0.7286,3197.9,3197.8,3.8783]
[1763363546308,0.507,3197.8,3197.5,0.5257]
[1763363546805,0.7286,3197.6,3197.5,1.19900133]
[1763363547411,0.50698,3198.0,3197.5,1.19900133]
[1763363547615,0.50697,3198.0,3197.5,1.19900133]
[1763363547806,3.2078,3198.2,3197.5,1.19900133]
[1763363548406,0.7286,3198.1,3198.0,0.3976]
[1763363548716,1.23555,3198.1,3197.5,0.52850133]
[1763363549302,3.2078,3198.2,3197.5,0.52850133]
[1763363549303,0.50697,3198.0,3197.5,0.52850133]
[1763363550104,0.7286,3198.0,3197.9,0.6705]
[1763363554212,0.7286,3198.0,3197.7,0.83363557]
[1763363554413,0.7286,3198.0,3197.9,0.6705]
[1763363554612,0.7286,3197.8,3197.7,1.50413557]
[1763363555013,0.7286,3197.6,3197.5,1.3621369]
[1763363555220,1.87525073,3197.6,3197.5,0.00280133]
[1763363557413,1.87525073,3197.6,3197.5,1.33e-06]
[1763363558719,0.7286,3197.4,3197.3,0.0046908]
[1763363558916,3.9364,3197.4,3197.3,0.0046908]
[1763363559234,3.9364,3197.4,3196.6,0.6705]
[1763363559235,0.7286,3196.7,3196.6,0.6705]
[1763363559423,0.7286,3196.2,3196.1,1.50413557]
[1763363559718,0.7286,3196.1,3196.0,1.0681]
[1763363559922,0.7286,3196.1,3196.0,1.0708732]
[1763363560523,0.7286,3196.1,3196.0,0.4003732]
[1763363563424,0.7286,3196.1,3196.0,1.0708732]
[1763363564524,0.7286,3196.1,3196.0,0.4003732]
[1763363565326,0.7286,3196.1,3196.0,0.0027732]
[1763363565621,0.7286,3196.1,3196.0,1.0708732]
[1763363565831,0.7286,3196.1,3196.0,0.0027732]
[1763363567321,1.87525073,3196.1,3196.0,0.0027732]
[1763363567526,0.00219193,3196.2,3196.1,0.6705]
[1763363567727,3.2078,3196.8,3196.7,0.6705]
[1763363568729,3.21018234,3196.8,3196.7,0.6705]
[1763363570423,3.82448234,3196.8,3196.7,0.6705]
[1763363570630,3.21018234,3196.8,3196.7,0.6705]
[1763363571333,0.00238234,3196.8,3196.7,0.6705]
[1763363573727,0.0046908,3197.1,3197.0,1.0604]
[1763363574823,0.00725927,3197.1,3197.0,1.0604]
[1763363576532,3.71484,3197.6,3197.0,1.0604]
[1763363576533,3.2078,3197.6,3197.0,1.0604]
[1763363576722,3.2078,3197.6,3197.5,1.0604]
[1763363577128,3.71477,3198.0,3197.5,1.0604]
[1763363577339,3.2078,3198.0,3197.5,1.0604]
[1763363577530,1.12131,3197.8,3197.7,0.6639]
[1763363578333,0.6143,3197.6,3197.5,1.0604]
[1763363578532,0.50702,3197.7,3197.6,0.6639]
[1763363578735,1.12132,3197.7,3197.6,0.6639]
[1763363579529,0.6143,3197.7,3197.6,0.6639]
[1763363580628,0.50701,3197.8,3197.5,1.0604]
[1763363580629,0.6143,3197.6,3197.5,1.0604]
[1763363581327,3.2107551,3198.0,3197.5,1.0604]
[1763363581328,3.2107551,3198.0,3197.9,0.6639]
[1763363581530,0.2133,3199.5,3199.0,0.6639]
[1763363581835,1.39388767,3200.0,3199.9,0.6639]
[1763363581836,0.8839,3200.0,3199.9,0.6639]
[1763363582328,1.0311,3200.0,3199.7,3.2078]
[1763363582526,0.6143,3199.8,3199.7,3.87447954]
[1763363582727,0.41939508,3200.0,3199.7,3.87447954]
[1763363583233,0.41939508,3200.0,3199.9,0.6639]
[1763363583438,0.00259508,3200.0,3199.9,0.6639]
[1763363583633,0.61689508,3200.0,3199.9,0.6639]
[1763363583830,0.00259508,3200.0,3199.9,0.6639]
[1763363589236,0.61689508,3200.0,3199.9,0.6639]
[1763363589442,0.6143,3199.8,3199.7,3.21057954]
[1763363589748,0.6143,3199.8,3199.7,3.87447954]
[1763363590243,0.6143,3199.8,3199.7,3.21057954]
[1763363594338,0.6143,3199.8,3199.5,0.0046908]
[1763363594339,0.5067,3199.7,3199.5,0.0046908]
[1763363594544,0.6143,3199.2,3198.7,3.2078]
[1763363594846,1.71894604,3199.5,3198.7,3.2078]
[1763363595044,0.5068,3199.1,3198.7,3.2078]
[1763363595439,0.0046908,3199.2,3199.1,0.6639]
[1763363595749,0.0046908,3199.2,3199.1,3.8717]
[1763363596050,0.00259508,3200.0,3199.9,0.6639]
[1763363596248,0.6143,3199.8,3199.7,3.2078]
[1763363596549,0.6143,3199.8,3199.7,3.8717]
[1763363596747,0.50668,3199.9,3199.8,0.6639]
[1763363598539,0.00259508,3200.0,3199.9,0.6164]
[1763363602750,0.00259508,3200.0,3199.7,3.2078]
[1763363602945,0.00259508,3200.0,3199.9,0.6164]
[1763363605541,0.98329508,3200.0,3199.9,0.6164]
[1763363605951,0.60379508,3200.0,3199.9,0.6164]
[1763363606153,0.00259508,3200.0,3199.9,0.6164]
[1763363608452,0.60272221,3200.0,3199.9,0.6164]
[1763363609951,0.60272221,3200.0,3199.9,1.4429816]
[1763363611353,0.60272221,3200.0,3199.9,0.6164]
[1763363613557,14.10078432,3200.9,3200.8,0.6164]
[1763363613869,1.018,3201.0,3200.9,0.6164]
[1763363614559,1.02111379,3201.0,3200.9,0.6164]
[1763363614958,1.52760379,3201.0,3200.8,3.2078]
[1763363615163,1.10779,3200.4,3200.3,0.39142484]
[1763363615360,0.6012,3200.1,3200.0,3.2078]
[1763363615668,0.6012,3200.1,3200.0,3.8242]
[1763363615862,0.6012,3200.1,3200.0,3.2078]
[1763363616964,0.6012,3200.1,3200.0,3.8242]
[1763363617166,0.6012,3200.1,3200.0,3.2078]
[1763363621063,0.6012,3199.8,3199.7,0.0046908]
[1763363621260,0.50668,3199.8,3199.7,0.6210908]
[1763363621467,1.10788,3199.8,3199.7,0.6210908]
[1763363621764,1.10788,3199.8,3199.7,0.0046908]
[1763363622267,0.6012,3199.8,3199.7,0.0046908]
[1763363622469,0.6012,3199.8,3199.7,0.6210908]
[1763363622974,0.6012,3199.8,3199.7,0.0046908]
[1763363624487,3.809,3199.8,3199.7,0.0046908]
[1763363626671,0.6012,3199.2,3199.1,3.8242]
[1763363628473,0.3795,3199.5,3198.8,1.11999924]
[1763363628474,0.6007,3198.9,3198.8,1.11999924]
[1763363628666,0.6007,3198.9,3198.8,0.0046908]
[1763363629168,1.10762,3198.3,3198.2,3.2078]
[1763363629576,0.6007,3197.8,3197.7,3.2078]
[1763363630375,0.60399155,3197.8,3197.7,3.21024684]
[1763363631376,0.64705599,3197.8,3197.7,3.21024684]
[1763363631577,0.64705599,3197.8,3197.7,0.00244684]
[1763363632172,0.9727,3197.5,3197.4,0.0046908]
[1763363632572,1.01576444,3197.5,3197.4,0.0046908]
[1763363633074,0.04306444,3197.5,3197.4,0.5719363]
[1763363634279,1.01576444,3197.5,3197.4,0.5719363]
[1763363635681,0.04306444,3197.5,3197.4,0.5719363]
[1763363635878,0.41506444,3197.5,3197.4,0.5719363]
[1763363636465,1.01576444,3197.5,3197.4,0.5719363]
[1763363639284,1.01576444,3197.5,3197.4,0.0075363]
[1763363639479,0.9727,3197.0,3196.9,3.7722]
[1763363640483,1.01576444,3197.0,3196.9,3.77600094]
[1763363640778,1.05882888,3197.0,3196.9,3.77600094]
[1763363641180,1.05882888,3197.0,3196.9,3.21160094]
[1763363643281,0.08612888,3197.0,3196.9,3.77600094]
[1763363645983,0.45812888,3197.0,3196.9,3.77600094]
[1763363649489,1.05882888,3197.0,3196.9,3.77600094]
[1763363650187,0.45812888,3197.0,3196.9,3.77600094]
[1763363650584,0.08612888,3197.0,3196.9,3.77600094]
[1763363651888,4.68755,3197.5,3197.4,0.43520668]
[1763363653575,0.60399155,3197.8,3197.7,0.4511]
[1763363653779,0.00329155,3197.8,3197.7,0.4511]
[1763363654684,0.60399155,3197.8,3197.7,0.4511]
[1763363656088,0.00329155,3197.8,3197.7,3.6589]
[1763363657598,0.60399155,3197.8,3197.7,3.2078]
[1763363657786,0.00329155,3197.8,3197.7,3.6589]
[1763363658188,0.60399155,3197.8,3197.7,3.6589]
[1763363658681,0.22842865,3197.8,3197.7,3.6589]
[1763363659789,0.23206125,3197.8,3197.7,3.6589]
[1763363661292,0.23206125,3197.8,3197.7,3.2078]
[1763363661594,0.5082,3197.4,3197.3,3.2078]
[1763363662096,0.8416,3197.0,3196.9,3.21160094]
[1763363662299,0.8416,3197.0,3196.9,0.00380094]
[1763363662490,1.3488,3196.5,3196.4,3.2078]
[1763363663292,0.88466444,3196.5,3196.0,3.2078]
[1763363663592,0.5082,3196.1,3196.0,3.75731147]
[1763363664189,0.55126444,3196.1,3196.0,3.75731147]
[1763363665994,0.55126444,3196.1,3196.0,0.54951147]
[1763363666196,0.04306444,3196.1,3196.0,0.54951147]
[1763363669400,3.5412,3197.0,3196.5,0.5207]
[1763363669593,4.04833,3197.0,3196.5,0.5207]
[1763363670097,3.5412,3197.0,3196.5,0.5207]
[1763363670298,4.0838,3197.0,3196.9,0.5207]
[1763363670795,4.0838,3197.0,3196.3,3.2078]
[1763363670994,4.0838,3197.0,3196.4,40.8]
[1763363671702,0.0046908,3197.1,3197.0,0.5207]
[1763363672288,0.5472908,3197.1,3196.7,3.2078]
[1763363672492,0.0046908,3197.1,3196.7,3.2078]
[1763363672692,0.3247,3197.0,3196.7,3.2078]
[1763363672907,0.8673,3197.0,3196.9,0.5207]
[1763363674691,1.14890856,3197.6,3196.7,3.2078]
[1763363674692,1.12428767,3198.3,3197.0,0.206]
[1763363674906,0.3247,3198.5,3198.2,1.14890856]
[1763363675101,1.12065643,3198.7,3198.0,3.2078]
[1763363675102,0.3247,3199.0,3198.4,1.14890856]
[1763363675300,0.3247,3199.5,3198.8,1.14890856]
[1763363675501,0.5426,3199.2,3199.1,3.2078]
[1763363675699,0.3293908,3199.5,3199.1,3.2078]
[1763363676005,0.33340062,3199.5,3199.1,3.21174637]
[1763363678110,0.5426,3199.2,3199.1,3.21174637]
[1763363678305,0.5426,3199.2,3199.1,0.00394637]
[1763363678497,0.5426,3198.9,3198.8,0.0046908]
[1763363679508,0.3247,3199.0,3198.8,0.0046908]
[1763363679808,0.5426,3198.9,3198.8,0.00694605]